Workbook

Sheet Report
C3: DAILY REPORTING BY OUTLET
B6: OUTLET | C6: =MID(CELL("FILENAME",$A$1),FIND("[",CELL("FILENAME",$A$1))+1,3) -> TSU | G6: PUBLIC HOLIDAY EVE | J6: PUBLIC HOLIDAY EVE | K6: FALSE
B8: DATE | C8: =TEXT(DATE(MID(CELL("FILENAME",$A$1),FIND("[",CELL("FILENAME",$A$1))+4,4),MID(CELL("FILENAME",$A$1),FIND("[",CELL("FILENAME",$A$1))+8,2),MID(CELL("FILENAME",$A$1),FIND("[",CELL("FILENAME",$A$1))+10,2)),"DD MMMM YYYY")&" "&TEXT(DATE(MID(CELL("FILENAME",$A$1),FIND("[",CELL("FILENAME",$A$1))+4,4),MID(CELL("FILENAME",$A$1),FIND("[",CELL("FILENAME",$A$1))+8,2),MID(CELL("FILENAME",$A$1),FIND("[",CELL("FILENAME",$A$1))+10,2)),"DDDD") -> 14 June 2014 Saturday | G8: PUBLIC HOLIDAY | J8: PUBLIC HOLIDAY | K8: FALSE
B11: A : MANPOWER
B12: A01 : MANPOWER UPDATE
B13: STAFF ID | C13: STAFF NAME | E13: DEPARTMENT | F13: EMPLOYMENT | G13: STATUS | J13: DEPARTMENT | K13: EMPLOYMENT ( LIST) | L13: EMPLOYMENT | M13: STATUS ( LIST ) | N13: STATUS
E14: =$J14 -> 0 | F14: =$L14 -> 0 | G14: =$N14 -> 0 | K14: FULL TIME | M14: CONFIRMED ON
E15: 0 | F15: =$L15 -> 0 | G15: 0 | K15: PART TIME | M15: PROMOTED TO
E16: 0 | F16: =$L16 -> 0 | G16: 0 | K16: OUT-SOURCED | M16: REPORTED DUTY ON
E17: 0 | F17: 0 | G17: 0 | M17: RESIGNED BY
E18: 0 | F18: 0 | G18: 0 | M18: SUSPENDED TILL
E19: 0 | F19: 0 | G19: 0 | M19: TERMINATED ON
E20: 0 | F20: 0 | G20: 0
E21: 0 | F21: 0 | G21: 0
E22: 0 | F22: 0 | G22: 0
E23: 0 | F23: 0 | G23: 0
E24: 0 | F24: 0 | G24: 0
E25: 0 | F25: 0 | G25: 0
E26: 0 | F26: 0 | G26: 0
E27: 0 | F27: 0 | G27: 0
E28: 0 | F28: 0 | G28: 0
B29: A02 : ATTENDANCE
B30: DEPARTMENT | C30: A.M. | F30: P.M.
C31: PLANNED | D31: ACTUAL | E31: % ATTENDANCE | F31: PLANNED | G31: ACTUAL | H31: % ATTENDANCE
B32: FOR FULL TIME STAFF ( BY PAX )
B33: SUPERVISOR | D33: =$C33-COUNTIFS($J$53:$J$62,$B33,$L$53:$L$62,$C$30,$P$53:$P$62,"=ABSENT")-0.5*COUNTIFS($J$53:$J$62,$B33,$L$53:$L$62,"MID",$P$53:$P$62,"=ABSENT") -> 0 | E33: =IFERROR($D33/$C33,"") ->  | G33: =$F33-COUNTIFS($J$53:$J$62,$B33,$L$53:$L$62,$F$30,$P$53:$P$62,"=ABSENT")-0.5*COUNTIFS($J$53:$J$62,$B33,$L$53:$L$62,"MID",$P$53:$P$62,"=ABSENT") -> 0 | H33: =IFERROR($G33/$F33,"") -> 
B34: RECEPTION | D34: =$C34-COUNTIFS($J$53:$J$62,$B34,$L$53:$L$62,$C$30,$P$53:$P$62,"=ABSENT")-0.5*COUNTIFS($J$53:$J$62,$B34,$L$53:$L$62,"MID",$P$53:$P$62,"=ABSENT") -> 0 | E34: =IFERROR($D34/$C34,"") ->  | G34: =$F34-COUNTIFS($J$53:$J$62,$B34,$L$53:$L$62,$F$30,$P$53:$P$62,"=ABSENT")-0.5*COUNTIFS($J$53:$J$62,$B34,$L$53:$L$62,"MID",$P$53:$P$62,"=ABSENT") -> 0 | H34: =IFERROR($G34/$F34,"") -> 
B35: BAR | D35: 0 | G35: 0
B36: FLOOR | D36: 0 | G36: 0
B37: KITCHEN | D37: 0 | G37: 0
B38: TECHNICAL | D38: 0 | G38: 0
B39: CLEANER | D39: 0 | G39: 0
D40: 0 | G40: 0
D41: 0 | G41: 0
D42: 0 | G42: 0
B43: TOTAL ( BY PAX ) | C43: =SUM(C$33:C$42) -> 0 | D43: =SUM(D$33:D$42) -> 0 | F43: =SUM(F$33:F$39) -> 0 | G43: =SUM(G$33:G$39) -> 0
B44: FOR PART TIME STAFF ( BY HOURS ) | J44: DEPARTMENT
B45: =$J45 -> 0 | E45: =IFERROR($D45/$C45,"") ->  | H45: =IFERROR($G45/$F45,"") -> 
B46: =$J46 -> 0
B47: =$J47 -> 0
B48: =$J48 -> 0
B49: =$J49 -> 0
B50: TOTAL ( HOURS ) | C50: =SUM(C$45:C$49) -> 0 | D50: =SUM(D$45:D$49) -> 0 | F50: =SUM(F$45:F$49) -> 0 | G50: =SUM(G$45:G$49) -> 0
B51: A03 : ABSENT FROM / LATE FOR WORK ( FOR FULL TIME STAFF ONLY )
B52: STAFF NAME | D52: DEPARTMENT | E52: SHIFT | F52: REASON FOR ABSENCE | H52: LATE ( MINUTES ) | J52: DEPARTMENT | K52: SHIFT ( LIST ) | L52: SHIFT | M52: REASON ( LIST ) | N52: REASON 01 | O52: REASON 02 | P52: REASON 03 | Q52: LATE | R52: LATE ( A.M. ) | S52: LATE ( P.M. )
D53: =$J53 -> 0 | E53: =$L53 -> 0 | F53: =$N53&" "&$O53 ->  | H53: =$R53 -> 0 | K53: A.M. | M53: ABS | P53: =IF(OR($N53="ABS",$N53="CL",$N53="EL",$N53="ML"),"ABSENT","") ->  | R53: =IFERROR(IF($L53="A.M.",VALUE($Q53),0)+IF(AND($L53="MID",VALUE($Q53)<=240),VALUE($Q53),0)+IF(AND($L53="MID",VALUE($Q53)>240),240,0),"") -> 0 | S53: =IFERROR(IF($L53="P.M.",VALUE($Q53),0)+IF(AND($L53="MID",VALUE($Q53)>240),VALUE($Q53)-240,0),"") -> 0
D54: 0 | E54: =$L54 -> 0 | F54: =$N54&" "&$O54 ->  | H54: 0 | K54: P.M. | M54: CL | P54: =IF(OR($N54="ABS",$N54="CL",$N54="EL",$N54="ML"),"ABSENT","") ->  | R54: 0 | S54: 0
D55: 0 | E55: 0 | H55: 0 | K55: MID | M55: EL | R55: 0 | S55: 0
D56: 0 | E56: 0 | H56: 0 | M56: ML | R56: 0 | S56: 0
D57: 0 | E57: 0 | H57: 0 | R57: 0 | S57: 0
D58: 0 | E58: 0 | H58: 0 | R58: 0 | S58: 0
D59: 0 | E59: 0 | H59: 0 | R59: 0 | S59: 0
D60: 0 | E60: 0 | H60: 0 | R60: 0 | S60: 0
D61: 0 | E61: 0 | H61: 0 | R61: 0 | S61: 0
D62: 0 | E62: 0 | H62: 0 | R62: 0 | S62: 0
B63: SHIFT | C63: ABS | D63: CL | E63: EL | F63: ML | G63: LATE
C64: no. of pax | D64: no. of pax | E64: no. of pax | F64: no. of pax | G64: no. of pax | H64: minutes
B65: A.M. | C65: =COUNTIFS($B$53:$B$62,"<>"&"",$L$53:$L$62,$B65,$N$53:$N$62,C$63)+0.5*COUNTIFS($B$53:$B$62,"<>"&"",$L$53:$L$62,"MID",$N$53:$N$62,C$63) -> 0 | D65: =COUNTIFS($B$53:$B$62,"<>"&"",$L$53:$L$62,$B65,$N$53:$N$62,D$63)+0.5*COUNTIFS($B$53:$B$62,"<>"&"",$L$53:$L$62,"MID",$N$53:$N$62,D$63) -> 0 | E65: 0 | F65: 0 | G65: =COUNTIFS($B$53:$B$62,"<>"&"",$L$53:$L$62,$B65,$R$53:$R$62,">0")+0.5*COUNTIFS($B$53:$B$62,"<>"&"",$L$53:$L$62,"MID",$R$53:$R$62,">0") -> 0 | H65: =SUM($R$53:$R$62) -> 0
B66: P.M. | C66: =COUNTIFS($B$53:$B$62,"<>"&"",$L$53:$L$62,$B66,$N$53:$N$62,C$63)+0.5*COUNTIFS($B$53:$B$62,"<>"&"",$L$53:$L$62,"MID",$N$53:$N$62,C$63) -> 0 | D66: 0 | E66: 0 | F66: 0 | G66: =COUNTIFS($B$53:$B$62,"<>"&"",$L$53:$L$62,$B66,$R$53:$R$62,">0")+0.5*COUNTIFS($B$53:$B$62,"<>"&"",$L$53:$L$62,"MID",$R$53:$R$62,">0") -> 0 | H66: =SUM($S$53:$S$62) -> 0
B67: TOTAL | C67: =SUM(C$65:C$66) -> 0 | D67: 0 | E67: 0 | F67: 0 | G67: 0 | H67: 0
B68: A04 : OVERTIME ( FOR FULL TIME STAFF ONLY )
B69: STAFF NAME | D69: DEPARTMENT | E69: SHIFT | F69: OVERTIME | G69: REASON | J69: DEPARTMENT | K69: SHIFT | L69: OVERTIME | M69: OVERTIME
F70: ( MINUTES )
D71: =$J71 -> 0 | E71: =$K71 -> 0 | F71: =$L71 -> 0 | M71: =IFERROR(VALUE($L71),"") -> 0
D72: 0 | E72: 0 | F72: 0 | M72: =IFERROR(VALUE($L72),"") -> 0
D73: 0 | E73: 0 | F73: 0 | M73: 0
D74: 0 | E74: 0 | F74: 0 | M74: 0
D75: 0 | E75: 0 | F75: 0 | M75: 0
D76: 0 | E76: 0 | F76: 0 | M76: 0
D77: 0 | E77: 0 | F77: 0 | M77: 0
D78: 0 | E78: 0 | F78: 0 | M78: 0
D79: 0 | E79: 0 | F79: 0 | M79: 0
D80: 0 | E80: 0 | F80: 0 | M80: 0
B81: TOTAL OVERTIME | C81: A.M. | E81: P.M. | G81: TOTAL
B82: IN MINUTES | C82: =SUMIF($K$71:$K$80,$C$81,$M$71:$M$80)+0.5*SUMIF($K$71:$K$80,"MID",$M$71:$M$80) -> 0 | E82: =SUMIF($K$71:$K$80,$E$81,$M$71:$M$80)+0.5*SUMIF($K$71:$K$80,"MID",$M$71:$M$80) -> 0 | G82: =SUM($C$82:$F$82) -> 0
B83: A05 : EFFECTIVE MAN HOUR FOR THE DAY ( IN HH:MM )
B84: DEPARTMENT | C84: A.M. | F84: P.M.
C85: PLANNED | D85: ACTUAL | E85: % ATTENDANCE | F85: PLANNED | G85: ACTUAL | H85: % ATTENDANCE
B86: =IF($B33<>"",$B33,"") -> SUPERVISOR | C86: =IFERROR(($C33*8)/24,"") -> 0 | D86: =IFERROR(($D33*8-SUMIF($J$53:$J$62,$B86,$R$53:$R$62)/60+1.5*(SUMIFS($M$71:$M$80,$J$71:$J$80,$B86,$K$71:$K$80,$C$84)/60)+0.75*(SUMIFS($M$71:$M$80,$J$71:$J$80,$B86,$K$71:$K$80,"MID")/60))/24,"") -> 0 | E86: =IFERROR($D86/$C86,"") ->  | F86: =IFERROR(($F33*8)/24,"") -> 0 | G86: =IFERROR(($G33*8-SUMIF($J$53:$J$62,$B86,$S$53:$S$62)/60+1.5*(SUMIFS($M$71:$M$80,$J$71:$J$80,$B86,$K$71:$K$80,$F$84)/60)+0.75*(SUMIFS($M$71:$M$80,$J$71:$J$80,$B86,$K$71:$K$80,"MID")/60))/24,"") -> 0 | H86: =IFERROR($G86/$F86,"") -> 
B87: =IF($B34<>"",$B34,"") -> RECEPTION | C87: =IFERROR(($C34*8)/24,"") -> 0 | D87: =IFERROR(($D34*8-SUMIF($J$53:$J$62,$B87,$R$53:$R$62)/60+1.5*(SUMIFS($M$71:$M$80,$J$71:$J$80,$B87,$K$71:$K$80,$C$84)/60)+0.75*(SUMIFS($M$71:$M$80,$J$71:$J$80,$B87,$K$71:$K$80,"MID")/60))/24,"") -> 0 | E87: =IFERROR($D87/$C87,"") ->  | F87: =IFERROR(($F34*8)/24,"") -> 0 | G87: =IFERROR(($G34*8-SUMIF($J$53:$J$62,$B87,$S$53:$S$62)/60+1.5*(SUMIFS($M$71:$M$80,$J$71:$J$80,$B87,$K$71:$K$80,$F$84)/60)+0.75*(SUMIFS($M$71:$M$80,$J$71:$J$80,$B87,$K$71:$K$80,"MID")/60))/24,"") -> 0 | H87: =IFERROR($G87/$F87,"") -> 
B88: BAR | C88: 0 | D88: 0 | F88: 0 | G88: 0
B89: FLOOR | C89: 0 | D89: 0 | F89: 0 | G89: 0
B90: KITCHEN | C90: 0 | D90: 0 | F90: 0 | G90: 0
B91: TECHNICAL | C91: 0 | D91: 0 | F91: 0 | G91: 0
B92: CLEANER | C92: 0 | D92: 0 | F92: 0 | G92: 0
C93: 0 | D93: 0 | F93: 0 | G93: 0
C94: 0 | D94: 0 | F94: 0 | G94: 0
C95: 0 | D95: 0 | F95: 0 | G95: 0
B96: TOTAL EFFECTIVE | C96: =SUM(C$86:C$95) -> 0 | D96: =SUM(D$86:D$95) -> 0 | E96: =IFERROR($D$96/$C$96,"") ->  | F96: =SUM(F$86:F$95) -> 0 | G96: =SUM(G$86:G$95) -> 0 | H96: =IFERROR($G$96/$F$96,"") -> 
B97: MAN HOUR FOR DAY
B99: B : SALES PERFORMANCE
B100: B01 : SALES FOR THE DAY
B101: SHIFT | C101: CASH SALES | D101: CARD SALES | E101: SUB-TOTAL | F101: PAY OUT | G101: SPECIAL PAY OUT
B102: A.M. | C102: 5729.1 | D102: 182 | E102: =$C102+$D102 -> 5911.1
B103: P.M. | C103: 7775.7 | D103: 1506.6 | E103: =$C103+$D103 -> 9282.3
B104: SUB-TOTAL | C104: =SUM(C$102:C$103) -> 13504.8 | D104: =SUM(D$102:D$103) -> 1688.6 | E104: =SUM($C$102:$D$103) -> 15193.4 | F104: 66.85
B105: B02 : ROOM
B106: TOTAL NO. OF ROOMS IN OUTLET | D106: 46 | J106: TIME
B107: UTILISATION OF ROOMS | E107: UTILISATION OF ROOMS ( PARTY , BIG )
B108: SESSION | C108: ROOMS USED | D108: % USED | E108: ROOM | F108: TIME | G108: PAX | H108: AMOUNT
B109: NOON K | C109: 33 | D109: =IFERROR($C109/$D$106,"") -> 0.7173913043 | E109: 201 | F109: =$J109/(24*60*60) -> 00:00:00 | G109: =10+12 -> 22 | H109: =162+384.4 -> 546.4 | J109: 0
B110: HAPPY | C110: 44 | D110: =IFERROR($C110/$D$106,"") -> 0.9565217391 | E110: 217 | F110: =$J110/(24*60*60) -> 00:00:00 | G110: =10+6+13 -> 29 | H110: =119.2+252+151.2 -> 522.4 | J110: 0
B111: NORMAL | C111: 68 | D111: =IFERROR($C111/(2*$D$106),"") -> 0.7391304348 | E111: 301 | F111: =$J111/(24*60*60) -> 00:00:00 | G111: =7+8 -> 15 | H111: =126+556 -> 682 | J111: 0
B112: MIDNIGHT | C112: 19 | D112: =IFERROR($C112/$D$106,"") -> 0.4130434783 | E112: 308 | F112: =$J112/(24*60*60) -> 00:00:00 | G112: =7+7 -> 14 | H112: =113.4+112 -> 225.4 | J112: 0
B113: TOTAL | C113: =SUM(C$109:C$112) -> 164 | D113: =IFERROR($C113/(5*$D$106),"") -> 0.7130434783 | F113: =$J113/(24*60*60) -> 00:00:00 | J113: 0
B114: B03 : PAX
B115: SESSION | C115: TOTAL PAX | D115: CHILDREN | E115: LADIES | F115: SENIOR CITIZEN | G115: STUDENT | H115: AVE. PAX / ROOM
B116: NOON K | C116: 116 | D116: 4 | H116: =IFERROR($C116/$C109,"") -> 3.515151515
B117: HAPPY | C117: 157 | D117: 1 | H117: =IFERROR($C117/$C110,"") -> 3.568181818
B118: NORMAL | C118: 251 | D118: 10 | H118: =IFERROR($C118/$C111,"") -> 3.691176471
B119: MIDNIGHT | C119: 82 | D119: 4 | H119: =IFERROR($C119/$C112,"") -> 4.315789474
B120: TOTAL | C120: =SUM(C$116:C$119) -> 606 | D120: =SUM(D$116:D$119) -> 19 | E120: =E$119 -> 0 | F120: =F$117 -> 0 | G120: =G$117 -> 0 | H120: =IFERROR($C120/$C113,"") -> 3.695121951
B121: B04 : PACKAGE ( BEER )
B122: DESCRIPTION | D122: NO. OF PACKAGE SOLD IN SESSION | J122: TYPE OF PACKAGE | K122: TYPE OF BEER | L122: QTY OF BEER | M122: TYPE OF PACKAGE | N122: TYPE OF BEER | O122: QTY OF BEER CONSUMED ( BY BOTTLE )
B123: PACKAGE TYPE | C123: BEER TYPE | D123: NOON K | E123: HAPPY | F123: NORMAL | G123: MIDNIGHT | H123: TOTAL | J123: ( LIST ) | K123: ( LIST ) | L123: ( BY BOTTLE ) | M123: ( SELECTED ) | N123: ( SELECTED ) | O123: NOON K | P123: HAPPY | Q123: NORMAL | R123: MIDNIGHT | S123: TOTAL
B124: =$M124 -> 04BP ( before 7 ) | C124: =$N124 -> 0 | H124: =SUM($D124:$G124) -> 0 | J124: 04BP ( before 7 ) | K124: =IF($B253<>"",$B253,"") -> GUINNESS | L124: 12 | M124: 04BP ( before 7 ) | O124: =IFERROR(INDEX($L$124:$L$133,MATCH($M124,$J$124:$J$133,0),1)*$D124,"") -> 0 | P124: =IFERROR(INDEX($L$124:$L$133,MATCH($M124,$J$124:$J$133,0),1)*$E124,"") -> 0 | Q124: =IFERROR(INDEX($L$124:$L$133,MATCH($M124,$J$124:$J$133,0),1)*$F124,"") -> 0 | R124: =IFERROR(INDEX($L$124:$L$133,MATCH($M124,$J$124:$J$133,0),1)*$G124,"") -> 0 | S124: =SUM($O124:$R124) -> 0
B125: 04BP ( after 7 ) | C125: 0 | F125: 3 | G125: 3 | H125: =SUM($D125:$G125) -> 6 | J125: 04BP ( after 7 ) | K125: =IF($B254<>"",$B254,"") -> HEINEKEN | L125: 12 | M125: 04BP ( after 7 ) | O125: =IFERROR(INDEX($L$124:$L$133,MATCH($M125,$J$124:$J$133,0),1)*$D125,"") -> 0 | P125: =IFERROR(INDEX($L$124:$L$133,MATCH($M125,$J$124:$J$133,0),1)*$E125,"") -> 0 | Q125: =IFERROR(INDEX($L$124:$L$133,MATCH($M125,$J$124:$J$133,0),1)*$F125,"") -> 36 | R125: =IFERROR(INDEX($L$124:$L$133,MATCH($M125,$J$124:$J$133,0),1)*$G125,"") -> 36 | S125: =SUM($O125:$R125) -> 72
B126: 0 | C126: 0 | H126: =SUM($D126:$G126) -> 0 | K126: TIGER | S126: 0
B127: 0 | C127: 0 | H127: 0 | S127: 0
B128: 0 | C128: 0 | H128: 0 | S128: 0
B129: 0 | C129: 0 | H129: 0 | S129: 0
B130: 0 | C130: 0 | H130: 0 | S130: 0
B131: 0 | C131: 0 | H131: 0 | S131: 0
B132: 0 | C132: 0 | H132: 0 | S132: 0
B133: 0 | C133: 0 | H133: 0 | S133: 0
B134: B05 : PACKAGE ( LIQUOR & WINE )
B135: DESCRIPTION | D135: NO. OF PACKAGE SOLD IN SESSION | J135: TYPE OF LIQUOR / WINE | K135: TYPE OF LIQUOR / WINE | L135: TYPE OF LIQUOR / WINE | M135: QTY OF LIQUOR / WINE CONSUMED
D136: NOON K | E136: HAPPY | F136: NORMAL | G136: MIDNIGHT | H136: TOTAL | J136: ( LIST ) | K136: ( SELECTED ) | L136: ( SELECTED ) | M136: NOON K | N136: HAPPY | O136: NORMAL | P136: MIDNIGHT | Q136: TOTAL
B137: LIQUOR PACKAGE | 02LP | J137: LIQUOR | M137: =SUMIF($K$138:$K$158,$J138,$D$138:$D$158)+SUMIF($L$138:$L$158,$J138,$D$138:$D$158) -> 0 | N137: =SUMIF($K$138:$K$158,$J138,$E$138:$E$158)+SUMIF($L$138:$L$158,$J138,$E$138:$E$158) -> 0 | O137: =SUMIF($K$138:$K$158,$J138,$F$138:$F$158)+SUMIF($L$138:$L$158,$J138,$F$138:$F$158) -> 0 | P137: =SUMIF($K$138:$K$158,$J138,$G$138:$G$158)+SUMIF($L$138:$L$158,$J138,$G$138:$G$158) -> 0 | Q137: =SUMIF($K$138:$K$158,$J138,$G$138:$G$158)+SUMIF($L$138:$L$158,$J138,$G$138:$G$158) -> 0
B138: =$K138 -> 0 | H138: =SUM($D138:$G138) -> 0 | J138: =IF($B264<>"",$B264,"") -> ABSOLUT BLUE | M138: =SUMIF($K$138:$K$154,$J138,$D$138:$D$154)+SUMIF($L$138:$L$154,$J138,$D$138:$D$154) -> 0 | N138: =SUMIF($K$138:$K$154,$J138,$E$138:$E$154)+SUMIF($L$138:$L$154,$J138,$E$138:$E$154) -> 0 | O138: =SUMIF($K$138:$K$154,$J138,$F$138:$F$154)+SUMIF($L$138:$L$154,$J138,$F$138:$F$154) -> 0 | P138: =SUMIF($K$138:$K$154,$J138,$G$138:$G$154)+SUMIF($L$138:$L$154,$J138,$G$138:$G$154) -> 0 | Q138: =SUM($M138:$P138) -> 0
B139: =$K139 -> 0 | H139: =SUM($D139:$G139) -> 0 | J139: =IF($B265<>"",$B265,"") -> ABSOLUT VANILA | M139: =SUMIF($K$138:$K$154,$J139,$D$138:$D$154)+SUMIF($L$138:$L$154,$J139,$D$138:$D$154) -> 0 | N139: =SUMIF($K$138:$K$154,$J139,$E$138:$E$154)+SUMIF($L$138:$L$154,$J139,$E$138:$E$154) -> 0 | O139: =SUMIF($K$138:$K$154,$J139,$F$138:$F$154)+SUMIF($L$138:$L$154,$J139,$F$138:$F$154) -> 0 | P139: =SUMIF($K$138:$K$154,$J139,$G$138:$G$154)+SUMIF($L$138:$L$154,$J139,$G$138:$G$154) -> 0 | Q139: =SUM($M139:$P139) -> 0
B140: =$K140 -> 0 | H140: =SUM($D140:$G140) -> 0 | J140: BACARDI APPLE | M140: 0 | N140: 0 | O140: 0 | P140: 0 | Q140: 0
B141: =$K141 -> 0 | H141: =SUM($D141:$G141) -> 0 | J141: BACARDI BLANC | M141: 0 | N141: 0 | O141: 0 | P141: 0 | Q141: 0
B142: =$K142 -> 0 | H142: =SUM($D142:$G142) -> 0 | J142: BACARDI LEMON | M142: 0 | N142: 0 | O142: 0 | P142: 0 | Q142: 0
B143: LIQUOR PACKAGE | 06LP | J143: CHIVAS REGAL 12 | M143: 0 | N143: 0 | O143: 0 | P143: 0 | Q143: 0
B144: =$K144 -> 0 | H144: =SUM($D144:$G144) -> 0 | J144: GORDON'S GIN | M144: 0 | N144: 0 | O144: 0 | P144: 0 | Q144: 0
B145: =$K145 -> 0 | H145: =SUM($D145:$G145) -> 0 | J145: HENNESSY VSOP | M145: 0 | N145: 0 | O145: 0 | P145: 0 | Q145: 0
B146: =$K146 -> 0 | H146: =SUM($D146:$G146) -> 0 | J146: JOSE CUERVO | M146: 0 | N146: 0 | O146: 0 | P146: 0 | Q146: 0
B147: =$K147 -> 0 | H147: =SUM($D147:$G147) -> 0 | J147: JW BLACK | M147: 0 | N147: 0 | O147: 0 | P147: 0 | Q147: 0
B148: =$K148 -> 0 | H148: =SUM($D148:$G148) -> 0 | J148: MALIBU | M148: 0 | N148: 0 | O148: 0 | P148: 0 | Q148: 0
B149: LIQUOR PACKAGE | 12LP | J149: MARTELL VSOP | M149: 0 | N149: 0 | O149: 0 | P149: 0 | Q149: 0
B150: =$K150 -> 0 | C150: =$L150 -> 0 | H150: =SUM($D150:$G150) -> 0 | M150: 0 | N150: 0 | O150: 0 | P150: 0 | Q150: 0
B151: =$K151 -> 0 | C151: =$L151 -> 0 | H151: =SUM($D151:$G151) -> 0 | M151: 0 | N151: 0 | O151: 0 | P151: 0 | Q151: 0
B152: =$K152 -> 0 | C152: =$L152 -> 0 | H152: =SUM($D152:$G152) -> 0 | M152: 0 | N152: 0 | O152: 0 | P152: 0 | Q152: 0
B153: =$K153 -> 0 | C153: =$L153 -> 0 | H153: =SUM($D153:$G153) -> 0 | M153: 0 | N153: 0 | O153: 0 | P153: 0 | Q153: 0
B154: =$K154 -> 0 | C154: =$L154 -> 0 | H154: =SUM($D154:$G154) -> 0 | M154: 0 | N154: 0 | O154: 0 | P154: 0 | Q154: 0
B155: WINE PACKAGE | 02WP | J155: WINE
B156: =$K156 -> 0 | H156: =SUM($D156:$G156) -> 0 | J156: RED WINE | M156: =2*SUMIF($K$156:$K$158,$J156,$D$156:$D$158)+M$158 -> 0 | N156: =2*SUMIF($K$156:$K$158,$J156,$E$156:$E$158)+N$158 -> 0 | O156: =2*SUMIF($K$156:$K$158,$J156,$F$156:$F$158)+O$158 -> 0 | P156: =2*SUMIF($K$156:$K$158,$J156,$G$156:$G$158)+P$158 -> 0 | Q156: =SUM($M156:$P156) -> 0
B157: =$K157 -> 0 | H157: =SUM($D157:$G157) -> 0 | J157: WHITE WINE | M157: =2*SUMIF($K$156:$K$158,$J157,$D$156:$D$158)+M$158 -> 0 | N157: =2*SUMIF($K$156:$K$158,$J157,$E$156:$E$158)+N$158 -> 0 | O157: =2*SUMIF($K$156:$K$158,$J157,$F$156:$F$158)+O$158 -> 0 | P157: =2*SUMIF($K$156:$K$158,$J157,$G$156:$G$158)+P$158 -> 0 | Q157: =SUM($M157:$P157) -> 0
B158: =$K158 -> 0 | H158: =SUM($D158:$G158) -> 0 | J158: RED + WHITE WINE | M158: =SUMIF($K$156:$K$158,$J158,$D$156:$D$158) -> 0 | N158: =SUMIF($K$156:$K$158,$J158,$E$156:$E$158) -> 0 | O158: =SUMIF($K$156:$K$158,$J158,$F$156:$F$158) -> 0 | P158: =SUMIF($K$156:$K$158,$J158,$G$156:$G$158) -> 0
B159: B06 : SIDE ORDER ( ALCOHOLIC BEVERAGE )
B160: DESCRIPTION | D160: QTY SOLD IN SESSION | J160: TYPE OF DRINKS | K160: TYPE OF SERVING | L160: TYPE OF SERVING | M160: QTY OF BEER CONSUMED ( BY BOTTLE )
D161: NOON K | E161: HAPPY | F161: NORMAL | G161: MIDNIGHT | H161: TOTAL | J161: ( SELECTED ) | K161: ( LIST ) | L161: ( SELECTED ) | M161: NOON K | N161: HAPPY | O161: NORMAL | P161: MIDNIGHT | Q161: TOTAL
B162: BEER ( BY TYPE OF SERVING ) | J162: BEER
B163: =$J163 -> HEINEKEN | C163: =$L163 -> BOTTLE | F163: 4 | H163: =SUM($D163:$G163) -> 4 | J163: HEINEKEN | K163: BOTTLE | L163: BOTTLE | M163: =IF(OR($L163="BOTTLE",$L163="EXCHANGE"),$D163,IF($L163="BUCKET",4*$D163,IF($L163="ROUND",12*$D163,""))) -> 0 | N163: =IF(OR($L163="BOTTLE",$L163="EXCHANGE"),$E163,IF($L163="BUCKET",4*$E163,IF($L163="ROUND",12*$E163,""))) -> 0 | O163: =IF(OR($L163="BOTTLE",$L163="EXCHANGE"),$F163,IF($L163="BUCKET",4*$F163,IF($L163="ROUND",12*$F163,""))) -> 4 | P163: =IF(OR($L163="BOTTLE",$L163="EXCHANGE"),$G163,IF($L163="BUCKET",4*$G163,IF($L163="ROUND",12*$G163,""))) -> 0 | Q163: =SUM($M163:$P163) -> 4
B164: HEINEKEN | C164: BUCKET | F164: 10 | H164: =SUM($D164:$G164) -> 10 | J164: HEINEKEN | K164: BUCKET | L164: BUCKET | M164: =IF(OR($L164="BOTTLE",$L164="EXCHANGE"),$D164,IF($L164="BUCKET",4*$D164,IF($L164="ROUND",12*$D164,""))) -> 0 | N164: =IF(OR($L164="BOTTLE",$L164="EXCHANGE"),$E164,IF($L164="BUCKET",4*$E164,IF($L164="ROUND",12*$E164,""))) -> 0 | O164: =IF(OR($L164="BOTTLE",$L164="EXCHANGE"),$F164,IF($L164="BUCKET",4*$F164,IF($L164="ROUND",12*$F164,""))) -> 40 | P164: =IF(OR($L164="BOTTLE",$L164="EXCHANGE"),$G164,IF($L164="BUCKET",4*$G164,IF($L164="ROUND",12*$G164,""))) -> 0 | Q164: 40
B165: HEINEKEN | C165: ROUND | F165: 1 | H165: =SUM($D165:$G165) -> 1 | J165: HEINEKEN | K165: EXCHANGE | L165: ROUND | M165: 0 | N165: 0 | O165: 12 | P165: 0 | Q165: 12
B166: TIGER | C166: BOTTLE | H166: 0 | J166: TIGER | K166: ROUND | L166: BOTTLE | M166: 0 | N166: 0 | O166: 0 | P166: 0 | Q166: 0
B167: TIGER | C167: BUCKET | F167: 12 | H167: 12 | J167: TIGER | L167: BUCKET | M167: 0 | N167: 0 | O167: 48 | P167: 0 | Q167: 48
B168: TIGER | C168: ROUND | F168: 4 | H168: 4 | J168: TIGER | L168: ROUND | M168: 0 | N168: 0 | O168: 48 | P168: 0 | Q168: 48
B169: GUINNESS | C169: BOTTLE | H169: 0 | J169: GUINNESS | L169: BOTTLE | M169: 0 | N169: 0 | O169: 0 | P169: 0 | Q169: 0
B170: GUINNESS | C170: BUCKET | F170: 1 | H170: 1 | J170: GUINNESS | L170: BUCKET | M170: 0 | N170: 0 | O170: 4 | P170: 0 | Q170: 4
B171: GUINNESS | C171: ROUND | H171: 0 | J171: GUINNESS | L171: ROUND | M171: 0 | N171: 0 | O171: 0 | P171: 0 | Q171: 0
B172: 0 | C172: 0 | H172: 0 | Q172: 0
B173: 0 | C173: 0 | H173: 0 | Q173: 0
B174: 0 | C174: 0 | H174: 0 | Q174: 0
B175: 0 | C175: 0 | H175: 0 | Q175: 0
B176: 0 | C176: 0 | H176: 0 | Q176: 0
B177: 0 | C177: 0 | H177: 0 | Q177: 0
B178: LIQUOR ( BY BOTTLE ) | J178: LIQUOR | M178: =SUMIF($K$138:$K$158,$J178,$H$138:$H$158)+SUMIF($L$138:$L$158,$J178,$H$138:$H$158) -> 0
B179: =$J179 -> 0 | H179: =SUM($D179:$G179) -> 0 | O179: =$H179 -> 0
B180: 0 | H180: =SUM($D180:$G180) -> 0 | O180: =$H180 -> 0
B181: 0 | H181: =SUM($D181:$G181) -> 0 | O181: 0
B182: 0 | H182: 0 | O182: 0
B183: 0 | H183: 0 | O183: 0
B184: 0 | H184: 0 | O184: 0
B185: 0 | H185: 0 | O185: 0
B186: 0 | H186: 0 | O186: 0
B187: 0 | H187: 0 | O187: 0
B188: 0 | H188: 0 | O188: 0
B189: B07 : PROMOTION
B190: DESCRIPTION | D190: QTY SOLD IN SESSION
B191: E.G. K-LUNCH, K-DINNER | D191: NOON K | E191: HAPPY | F191: NORMAL | G191: MIDNIGHT | H191: TOTAL
B192: K-Lunch | D192: 112 | H192: =SUM($D192:$G192) -> 112
B193: LOK-LOK | H193: =SUM($D193:$G193) -> 0
B194: Member 30% | H194: =SUM($D194:$G194) -> 0
B195: Member Package | H195: 0
B196: Tiger (2+1) Round | H196: 0
B197: Student Member Card | H197: 0
B198: Student Member Price | H198: 0
H199: 0
H200: 0
H201: 0
B202: B08 : KITCHEN
B203: DESCRIPTION | D203: QTY SOLD IN SESSION
D204: NOON K | E204: HAPPY | F204: NORMAL | G204: MIDNIGHT | H204: TOTAL
B205: CHINESE | F205: 79 | H205: =SUM($D205:$G205) -> 79
B206: WESTERN | H206: =SUM($D206:$G206) -> 0
B207: SNACKS | H207: =SUM($D207:$G207) -> 0
B208: TOTAL | D208: =SUM(D$205:D$207) -> 0 | E208: =SUM(E$205:E$207) -> 0 | F208: =SUM(F$205:F$207) -> 79 | G208: =SUM(G$205:G$207) -> 0 | H208: =SUM($D208:$G208) -> 79
... 256 more rows
